[Event "RUS-ch Blitz 2021"]
[Site "Sochi"]
[Date "2021.10.11"]
[Round "5.5"]
[White "Babanin, Gleb"]
[Black "Tsydypov, Zhamsaran"]
[Result "0-1"]
[ECO "B90"]
[WhiteElo "2094"]
[BlackElo "2526"]
[Annotator "ChessBase"]
[PlyCount "122"]
[EventDate "2021.10.11"]
[EventType "blitz"]
[EventCountry "RUS"]
[SourceTitle "playchess.com"]
[Source "ChessBase"]
[SourceQuality "1"]
[TimeControl "180+2"]

1. e4 {[%emt 0:00:00]} c5 {[%emt 0:00:00]} 2. Nf3 {[%emt 0:00:00]} d6 {[%emt 0:
00:00]} 3. d4 {[%emt 0:00:00]} cxd4 {[%emt 0:00:00]} 4. Nxd4 {[%emt 0:00:07]}
Nf6 {[%emt 0:00:07]} 5. Nc3 {[%emt 0:00:00]} a6 {[%emt 0:00:00]} 6. f3 {
[%emt 0:00:07]} e5 {[%emt 0:00:03]} 7. Nb3 {[%emt 0:00:00]} Be7 {[%emt 0:00:00]
} 8. Be3 {[%emt 0:00:00]} Be6 {[%emt 0:00:12]} 9. Qd2 {[%emt 0:00:00]} O-O {
[%emt 0:00:00]} 10. O-O-O {[%emt 0:00:00]} a5 {[%emt 0:00:02]} 11. a4 {[%emt 0:
00:21]} Na6 {[%emt 0:00:00]} 12. Qf2 {[%emt 0:00:21]} Qc8 {[%emt 0:00:17]} 13.
Kb1 {[%emt 0:00:23]} Nb4 {[%emt 0:00:00]} 14. g4 {[%emt 0:00:04]} Ne8 {[%emt 0:
00:39]} 15. Nd5 {[%emt 0:00:35]} Nxd5 {[%emt 0:00:01]} 16. exd5 {[%emt 0:00:00]
} Bd7 {[%emt 0:00:00]} 17. Bb6 {[%emt 0:00:35]} Bxa4 {[%emt 0:00:09]} 18. Nxa5
{[%emt 0:00:00]} Bh4 {[%emt 0:00:18]} 19. Qd2 {[%emt 0:00:29]} Bd8 {[%emt 0:00:
59]} 20. Bxd8 {[%emt 0:00:09]} Qxd8 {[%emt 0:00:00]} 21. b4 {[%emt 0:00:16]}
Qc7 {[%emt 0:00:02]} 22. Kb2 {[%emt 0:00:00]} f5 {[%emt 0:00:16]} 23. g5 {
[%emt 0:00:03]} b6 {[%emt 0:00:05]} 24. Nc4 {[%emt 0:00:05]} Bd7 {[%emt 0:00:
14]} 25. Be2 {[%emt 0:00:00]} g6 {[%emt 0:00:10]} 26. Ra1 {[%emt 0:00:01]} Ng7
{[%emt 0:00:00]} 27. Rxa8 {[%emt 0:00:09]} Rxa8 {[%emt 0:00:00]} 28. Ra1 {
[%emt 0:00:00]} Rxa1 {[%emt 0:00:00]} 29. Kxa1 {[%emt 0:00:00]} Nh5 {[%emt 0:
00:00]} 30. Qe3 {[%emt 0:00:02]} Nf4 {[%emt 0:00:08]} 31. Bf1 {[%emt 0:00:01]}
Nxd5 {[%emt 0:00:03]} 32. Qb3 {[%emt 0:00:03]} Be6 {[%emt 0:00:01]} 33. Ne3 {
[%emt 0:00:12]} Nxe3 {[%emt 0:00:11]} 34. Qxe6+ {[%emt 0:00:00]} Qf7 {[%emt 0:
00:00]} 35. Qc8+ {[%emt 0:00:05]} Kg7 {[%emt 0:00:00]} 36. Bd3 {[%emt 0:00:00]}
Qe7 {[%emt 0:00:04]} 37. Qb8 {[%emt 0:00:05]} e4 {[%emt 0:00:00]} 38. fxe4 {
[%emt 0:00:00]} fxe4 {[%emt 0:00:03]} 39. Be2 {[%emt 0:00:05]} Qxg5 {[%emt 0:
00:14]} 40. Qxb6 {[%emt 0:00:00]} Qe5+ {[%emt 0:00:00]} 41. Kb1 {[%emt 0:00:00]
} Nd5 {[%emt 0:00:00]} 42. Qa7+ {[%emt 0:00:03]} Kh6 {[%emt 0:00:00]} 43. Qf2 {
[%emt 0:00:05]} Nc3+ {[%emt 0:00:02]} 44. Kc1 {[%emt 0:00:00]} Nxe2+ {[%emt 0:
00:05]} 45. Qxe2 {[%emt 0:00:00]} Qa1+ {[%emt 0:00:01]} 46. Kd2 {[%emt 0:00:04]
} Qd4+ {[%emt 0:00:00]} 47. Kc1 {[%emt 0:00:04]} Qxb4 {[%emt 0:00:00]} 48. Qe3+
{[%emt 0:00:00]} Kg7 {[%emt 0:00:00]} 49. Qf4 {[%emt 0:00:04]} Qd4 {[%emt 0:00:
02]} 50. Qg4 {[%emt 0:00:02]} Qe3+ {[%emt 0:00:07]} 51. Kb1 {[%emt 0:00:00]}
Qb6+ {[%emt 0:00:03]} 52. Kc1 {[%emt 0:00:00]} Qe3+ {[%emt 0:00:03]} 53. Kb1 {
[%emt 0:00:00]} Qf3 {[%emt 0:00:00]} 54. Qd7+ {[%emt 0:00:04]} Kh6 {[%emt 0:00:
00]} 55. Qxd6 {[%emt 0:00:05]} e3 {[%emt 0:00:00]} 56. Qd3 {[%emt 0:00:00]} Qf2
{[%emt 0:00:04]} 57. Qd4 {[%emt 0:00:01]} Kh5 {[%emt 0:00:06]} 58. Kb2 {
[%emt 0:00:04]} g5 {[%emt 0:00:02]} 59. Kc3 {[%emt 0:00:03]} Qf4 {[%emt 0:00:
03]} 60. Qd1+ {[%emt 0:00:03]} Kh4 {[%emt 0:00:00]} 61. Kd3 {[%emt 0:00:00]}
Qd6+ {[%emt 0:00:03]} 0-1

[Event "RUS-ch Blitz 2021"]
[Site "Sochi"]
[Date "2021.10.11"]
[Round "5.6"]
[White "Sakaev, Konstantin"]
[Black "Murzin, Volodar"]
[Result "1-0"]
[ECO "D45"]
[WhiteElo "2603"]
[BlackElo "2513"]
[Annotator "ChessBase"]
[PlyCount "65"]
[EventDate "2021.10.11"]
[EventType "blitz"]
[EventCountry "RUS"]
[SourceTitle "playchess.com"]
[Source "ChessBase"]
[SourceQuality "1"]
[TimeControl "180+2"]

1. d4 {[%emt 0:00:00]} Nf6 {[%emt 0:00:04]} 2. c4 {[%emt 0:00:02]} c6 {[%emt 0:
00:09]} 3. Nf3 {[%emt 0:00:01]} d5 {[%emt 0:00:01]} 4. Nc3 {[%emt 0:00:06]} a6
{[%emt 0:00:00]} 5. e3 {[%emt 0:00:15]} e6 {[%emt 0:00:29]} 6. Qc2 {[%emt 0:00:
00]} Nbd7 {[%emt 0:00:08]} 7. b3 {[%emt 0:00:03]} Bd6 {[%emt 0:00:17]} 8. Bb2 {
[%emt 0:00:27]} Qe7 {[%emt 0:00:04]} 9. Be2 {[%emt 0:00:02]} O-O {[%emt 0:00:
10]} 10. O-O {[%emt 0:00:03]} dxc4 {[%emt 0:00:46]} 11. bxc4 {[%emt 0:00:00]}
e5 {[%emt 0:00:12]} 12. h3 {[%emt 0:00:47]} Re8 {[%emt 0:00:08]} 13. Rfd1 {
[%emt 0:00:05]} exd4 {[%emt 0:00:25]} 14. exd4 {[%emt 0:00:04]} Nf8 {[%emt 0:
00:15]} 15. Re1 {[%emt 0:00:15]} Qd8 {[%emt 0:00:04]} 16. Bf1 {[%emt 0:00:10]}
Ng6 {[%emt 0:00:00]} 17. Rxe8+ {[%emt 0:00:04]} Qxe8 {[%emt 0:00:00]} 18. Re1 {
[%emt 0:00:03]} Qd8 {[%emt 0:00:01]} 19. Ne4 {[%emt 0:00:16]} Nxe4 {[%emt 0:00:
22]} 20. Qxe4 {[%emt 0:00:00]} Bd7 {[%emt 0:00:00]} 21. h4 {[%emt 0:00:07]} h6
{[%emt 0:00:05]} 22. d5 {[%emt 0:00:13]} cxd5 {[%emt 0:00:00]} 23. cxd5 {
[%emt 0:00:00]} Bb5 {[%emt 0:00:00]} 24. Qg4 {[%emt 0:00:22]} Bxf1 {[%emt 0:00:
02]} 25. Kxf1 {[%emt 0:00:00]} Qb6 {[%emt 0:00:06]} 26. Bd4 {[%emt 0:00:04]}
Qb5+ {[%emt 0:00:00]} 27. Kg1 {[%emt 0:00:00]} h5 {[%emt 0:00:03]} 28. Qxh5 {
[%emt 0:00:03]} Re8 {[%emt 0:00:05]} 29. Rxe8+ {[%emt 0:00:12]} Qxe8 {[%emt 0:
00:00]} 30. g3 {[%emt 0:00:05]} Qe4 {[%emt 0:00:00]} 31. Qh7+ {[%emt 0:00:05]}
Kf8 {[%emt 0:00:00]} 32. Qxg7+ {[%emt 0:00:00]} Ke8 {[%emt 0:00:03]} 33. Qxf7+
{[%emt 0:00:04]} 1-0

[Event "RUS-ch Blitz 2021"]
[Site "Sochi"]
[Date "2021.10.11"]
[Round "5.7"]
[White "Kobalia, Mikhail"]
[Black "Shubin, Kirill"]
[Result "0-1"]
[ECO "C03"]
[WhiteElo "2600"]
[BlackElo "2463"]
[Annotator "ChessBase"]
[PlyCount "49"]
[EventDate "2021.10.11"]
[EventType "blitz"]
[EventCountry "RUS"]
[SourceTitle "playchess.com"]
[Source "ChessBase"]
[SourceQuality "1"]
[TimeControl "180+2"]

1. e4 {[%emt 0:00:00]} e6 {[%emt 0:00:00]} 2. d4 {[%emt 0:00:07]} d5 {[%emt 0:
00:01]} 3. Nd2 {[%emt 0:00:00]} Be7 {[%emt 0:00:00]} 4. Bd3 {[%emt 0:00:06]} c5
{[%emt 0:00:04]} 5. dxc5 {[%emt 0:00:02]} Nf6 {[%emt 0:00:06]} 6. Ngf3 {
[%emt 0:00:08]} O-O {[%emt 0:00:02]} 7. O-O {[%emt 0:00:08]} Bxc5 {[%emt 0:00:
11]} 8. exd5 {[%emt 0:00:00]} exd5 {[%emt 0:00:00]} 9. Nb3 {[%emt 0:00:10]} Bb6
{[%emt 0:00:00]} 10. h3 {[%emt 0:00:05]} h6 {[%emt 0:00:06]} 11. Re1 {[%emt 0:
00:00]} Nc6 {[%emt 0:00:10]} 12. Be3 {[%emt 0:00:03]} Bxe3 {[%emt 0:00:08]} 13.
Rxe3 {[%emt 0:00:00]} Qb6 {[%emt 0:00:13]} 14. Qd2 {[%emt 0:00:00]} Ne4 {
[%emt 0:00:27]} 15. Bxe4 {[%emt 0:00:08]} dxe4 {[%emt 0:00:00]} 16. Rxe4 {
[%emt 0:00:04]} Bf5 {[%emt 0:00:00]} 17. Rf4 {[%emt 0:00:13]} Rad8 {[%emt 0:00:
21]} 18. Qc1 {[%emt 0:00:33]} Bg6 {[%emt 0:00:41]} 19. c3 {[%emt 0:00:00]} Rfe8
{[%emt 0:00:08]} 20. Nfd4 {[%emt 0:00:05]} Ne5 {[%emt 0:00:00]} 21. Qd2 {
[%emt 0:00:27]} Nc4 {[%emt 0:00:12]} 22. Qc1 {[%emt 0:00:02]} Ne5 {[%emt 0:00:
12]} 23. Qd2 {[%emt 0:00:00]} Nc4 {[%emt 0:00:00]} 24. Qc1 {[%emt 0:00:03]} Ne5
{[%emt 0:00:01]} 25. Qd2 {[%emt 0:00:26]} 0-1

[Event "RUS-ch Blitz 2021"]
[Site "Sochi"]
[Date "2021.10.11"]
[Round "5.8"]
[White "Pogosyan, Stefan"]
[Black "Pridorozhni, Aleksei"]
[Result "0-1"]
[ECO "D37"]
[WhiteElo "2407"]
[BlackElo "2564"]
[Annotator "ChessBase"]
[PlyCount "44"]
[EventDate "2021.10.11"]
[EventType "blitz"]
[EventCountry "RUS"]
[SourceTitle "playchess.com"]
[Source "ChessBase"]
[SourceQuality "1"]
[TimeControl "180+2"]

1. d4 {[%emt 0:00:00]} d5 {[%emt 0:00:14]} 2. c4 {[%emt 0:00:02]} e6 {[%emt 0:
00:00]} 3. Nc3 {[%emt 0:00:00]} Nf6 {[%emt 0:00:00]} 4. Nf3 {[%emt 0:00:23]} a6
{[%emt 0:00:37]} 5. c5 {[%emt 0:00:34]} b6 {[%emt 0:00:00]} 6. cxb6 {[%emt 0:
00:00]} cxb6 {[%emt 0:00:03]} 7. Bf4 {[%emt 0:00:24]} Bd6 {[%emt 0:00:00]} 8.
e3 {[%emt 0:00:00]} Bxf4 {[%emt 0:00:11]} 9. exf4 {[%emt 0:00:00]} O-O {
[%emt 0:00:00]} 10. Bd3 {[%emt 0:00:00]} Nc6 {[%emt 0:00:00]} 11. O-O {[%emt 0:
00:00]} Qd6 {[%emt 0:00:00]} 12. Ne5 {[%emt 0:00:00]} Bd7 {[%emt 0:00:09]} 13.
Rc1 {[%emt 0:00:10]} Rfc8 {[%emt 0:00:01]} 14. Qd2 {[%emt 0:00:13]} Nxd4 {
[%emt 0:00:17]} 15. Bxh7+ {[%emt 0:00:01]} Nxh7 {[%emt 0:00:07]} 16. Qxd4 {
[%emt 0:00:03]} Nf6 {[%emt 0:00:00]} 17. Rfd1 {[%emt 0:01:08]} Be8 {[%emt 0:00:
00]} 18. f3 {[%emt 0:00:00]} Rc7 {[%emt 0:00:00]} 19. Rc2 {[%emt 0:00:00]} Rac8
{[%emt 0:00:18]} 20. Rdc1 {[%emt 0:00:00]} Qc5 {[%emt 0:00:21]} 21. Qf2 {
[%emt 0:00:20]} Qxf2+ {[%emt 0:00:05]} 22. Kxf2 {[%emt 0:00:00]} d4 {[%emt 0:
00:03]} 0-1

[Event "RUS-ch Blitz 2021"]
[Site "Sochi"]
[Date "2021.10.11"]
[Round "5.9"]
[White "Antipov, Mikhail Al."]
[Black "Lobanov, Sergei"]
[Result "1-0"]
[ECO "C54"]
[WhiteElo "2619"]
[BlackElo "2501"]
[Annotator "ChessBase"]
[PlyCount "75"]
[EventDate "2021.10.11"]
[EventType "blitz"]
[EventCountry "RUS"]
[SourceTitle "playchess.com"]
[Source "ChessBase"]
[SourceQuality "1"]
[TimeControl "180+2"]

1. e4 {[%emt 0:00:00]} e5 {[%emt 0:00:00]} 2. Nf3 {[%emt 0:00:00]} Nc6 {
[%emt 0:00:07]} 3. Bc4 {[%emt 0:00:02]} Nf6 {[%emt 0:00:00]} 4. d3 {[%emt 0:00:
00]} Bc5 {[%emt 0:00:00]} 5. O-O {[%emt 0:00:07]} d6 {[%emt 0:00:00]} 6. c3 {
[%emt 0:00:01]} a5 {[%emt 0:00:01]} 7. Re1 {[%emt 0:00:17]} O-O {[%emt 0:00:14]
} 8. h3 {[%emt 0:00:06]} h6 {[%emt 0:00:01]} 9. Nbd2 {[%emt 0:00:00]} Be6 {
[%emt 0:00:08]} 10. Bb5 {[%emt 0:00:00]} Qb8 {[%emt 0:00:02]} 11. Nf1 {[%emt 0:
00:04]} Qa7 {[%emt 0:00:00]} 12. d4 {[%emt 0:00:00]} exd4 {[%emt 0:00:07]} 13.
Bxc6 {[%emt 0:00:00]} dxc3 {[%emt 0:00:13]} 14. Ba4 {[%emt 0:00:03]} Bxf2+ {
[%emt 0:00:00]} 15. Kh2 {[%emt 0:00:00]} Bxe1 {[%emt 0:00:12]} 16. Qxe1 {
[%emt 0:00:00]} d5 {[%emt 0:00:05]} 17. Be3 {[%emt 0:00:00]} c5 {[%emt 0:00:11]
} 18. e5 {[%emt 0:00:00]} Ne4 {[%emt 0:00:00]} 19. bxc3 {[%emt 0:00:05]} b6 {
[%emt 0:00:08]} 20. c4 {[%emt 0:00:47]} Qc7 {[%emt 0:00:23]} 21. cxd5 {[%emt 0:
00:16]} Bxd5 {[%emt 0:00:00]} 22. Rd1 {[%emt 0:00:05]} Bc6 {[%emt 0:00:05]} 23.
Bc2 {[%emt 0:00:36]} f5 {[%emt 0:00:23]} 24. Ng3 {[%emt 0:00:03]} Rae8 {
[%emt 0:00:16]} 25. Bc1 {[%emt 0:00:54]} Nxg3 {[%emt 0:00:44]} 26. Qxg3 {
[%emt 0:00:03]} Be4 {[%emt 0:00:02]} 27. Ba4 {[%emt 0:00:06]} Rd8 {[%emt 0:00:
13]} 28. Rd6 {[%emt 0:00:07]} Bxf3 {[%emt 0:00:11]} 29. gxf3 {[%emt 0:00:05]}
f4 {[%emt 0:00:05]} 30. Bxf4 {[%emt 0:00:06]} Rxd6 {[%emt 0:00:01]} 31. exd6 {
[%emt 0:00:02]} Qf7 {[%emt 0:00:00]} 32. Be5 {[%emt 0:00:08]} Qxa2+ {[%emt 0:
00:02]} 33. Qg2 {[%emt 0:00:00]} Qxg2+ {[%emt 0:00:09]} 34. Kxg2 {[%emt 0:00:
01]} Kf7 {[%emt 0:00:03]} 35. d7 {[%emt 0:00:06]} Ke7 {[%emt 0:00:00]} 36. Bc7
{[%emt 0:00:00]} c4 {[%emt 0:00:03]} 37. Bxb6 {[%emt 0:00:01]} c3 {[%emt 0:00:
00]} 38. Bxa5 {[%emt 0:00:01]} 1-0

[Event "RUS-ch Blitz 2021"]
[Site "Sochi"]
[Date "2021.10.11"]
[Round "5.10"]
[White "Bocharov, Dmitry"]
[Black "Somkin, Kirill"]
[Result "1-0"]
[ECO "D73"]
[WhiteElo "2517"]
[BlackElo "2186"]
[Annotator "ChessBase"]
[PlyCount "55"]
[EventDate "2021.10.11"]
[EventType "blitz"]
[EventCountry "RUS"]
[SourceTitle "playchess.com"]
[Source "ChessBase"]
[SourceQuality "1"]
[TimeControl "180+2"]

1. d4 {[%emt 0:00:00]} d5 {[%emt 0:00:00]} 2. c4 {[%emt 0:00:08]} c6 {[%emt 0:
00:02]} 3. Nf3 {[%emt 0:00:00]} Nf6 {[%emt 0:00:00]} 4. g3 {[%emt 0:00:00]}
dxc4 {[%emt 0:00:22]} 5. Bg2 {[%emt 0:00:05]} g6 {[%emt 0:00:00]} 6. a4 {
[%emt 0:00:05]} Bg7 {[%emt 0:00:09]} 7. O-O {[%emt 0:00:08]} O-O {[%emt 0:00:
02]} 8. Na3 {[%emt 0:00:00]} h6 {[%emt 0:01:12]} 9. Nxc4 {[%emt 0:00:02]} Be6 {
[%emt 0:00:02]} 10. b3 {[%emt 0:00:11]} Na6 {[%emt 0:00:09]} 11. Re1 {[%emt 0:
00:00]} Ne4 {[%emt 0:00:07]} 12. Bb2 {[%emt 0:00:09]} Nb4 {[%emt 0:00:20]} 13.
Nfd2 {[%emt 0:00:10]} Nxd2 {[%emt 0:00:10]} 14. Qxd2 {[%emt 0:00:06]} a5 {
[%emt 0:00:00]} 15. e4 {[%emt 0:00:17]} Qc7 {[%emt 0:00:17]} 16. Rac1 {[%emt 0:
00:12]} Rfd8 {[%emt 0:00:04]} 17. d5 {[%emt 0:00:00]} Bd7 {[%emt 0:00:07]} 18.
Bxg7 {[%emt 0:00:14]} Kxg7 {[%emt 0:00:04]} 19. h4 {[%emt 0:00:13]} h5 {
[%emt 0:00:05]} 20. Qd4+ {[%emt 0:00:14]} Kg8 {[%emt 0:00:00]} 21. e5 {[%emt 0:
00:07]} Be6 {[%emt 0:00:21]} 22. d6 {[%emt 0:00:33]} Bxc4 {[%emt 0:00:00]} 23.
bxc4 {[%emt 0:00:04]} exd6 {[%emt 0:00:00]} 24. e6 {[%emt 0:00:00]} d5 {
[%emt 0:00:11]} 25. cxd5 {[%emt 0:00:07]} Qe7 {[%emt 0:00:04]} 26. exf7+ {
[%emt 0:00:15]} Qxf7 {[%emt 0:00:00]} 27. d6 {[%emt 0:00:02]} Rd7 {[%emt 0:00:
00]} 28. Bh3 {[%emt 0:00:04]} 1-0

[Event "RUS-ch Blitz 2021"]
[Site "Sochi"]
[Date "2021.10.11"]
[Round "5.11"]
[White "Lysyj, Igor"]
[Black "Smagin, Sergey"]
[Result "1/2-1/2"]
[ECO "D30"]
[WhiteElo "2603"]
[BlackElo "2551"]
[Annotator "ChessBase"]
[PlyCount "79"]
[EventDate "2021.10.11"]
[EventType "blitz"]
[EventCountry "RUS"]
[SourceTitle "playchess.com"]
[Source "ChessBase"]
[SourceQuality "1"]
[TimeControl "180+2"]

1. d4 {[%emt 0:00:00]} d5 {[%emt 0:00:00]} 2. c4 {[%emt 0:00:08]} e6 {[%emt 0:
00:01]} 3. Nf3 {[%emt 0:00:00]} Nd7 {[%emt 0:00:00]} 4. g3 {[%emt 0:00:00]}
dxc4 {[%emt 0:00:00]} 5. Bg2 {[%emt 0:00:03]} Ne7 {[%emt 0:00:01]} 6. O-O {
[%emt 0:00:03]} Nc6 {[%emt 0:00:02]} 7. Qc2 {[%emt 0:00:05]} Nb6 {[%emt 0:00:
00]} 8. Rd1 {[%emt 0:00:03]} Be7 {[%emt 0:00:01]} 9. Nc3 {[%emt 0:00:03]} O-O {
[%emt 0:00:01]} 10. a3 {[%emt 0:00:03]} Re8 {[%emt 0:00:22]} 11. e4 {[%emt 0:
00:08]} h6 {[%emt 0:00:19]} 12. Bf4 {[%emt 0:00:02]} Na5 {[%emt 0:00:11]} 13.
Re1 {[%emt 0:00:08]} a6 {[%emt 0:00:05]} 14. Rad1 {[%emt 0:00:00]} Bd6 {
[%emt 0:00:07]} 15. Be3 {[%emt 0:00:06]} Bd7 {[%emt 0:00:05]} 16. Ne5 {[%emt 0:
00:08]} Bxe5 {[%emt 0:00:38]} 17. dxe5 {[%emt 0:00:02]} Qe7 {[%emt 0:00:03]}
18. f4 {[%emt 0:00:12]} Rad8 {[%emt 0:00:06]} 19. Qf2 {[%emt 0:00:18]} Na4 {
[%emt 0:00:05]} 20. Nxa4 {[%emt 0:00:17]} Bxa4 {[%emt 0:00:00]} 21. Bc5 {
[%emt 0:00:00]} Bxd1 {[%emt 0:00:06]} 22. Bxe7 {[%emt 0:00:04]} Rxe7 {[%emt 0:
00:02]} 23. Qc5 {[%emt 0:00:07]} Nc6 {[%emt 0:00:00]} 24. Qxc4 {[%emt 0:00:10]}
Red7 {[%emt 0:00:01]} 25. Qc5 {[%emt 0:00:08]} Ba4 {[%emt 0:00:24]} 26. h4 {
[%emt 0:00:35]} b6 {[%emt 0:00:02]} 27. Qc3 {[%emt 0:00:07]} Rd3 {[%emt 0:00:
05]} 28. Qc4 {[%emt 0:00:00]} Bb5 {[%emt 0:00:01]} 29. Qc1 {[%emt 0:00:04]}
Rxg3 {[%emt 0:00:03]} 30. Kh2 {[%emt 0:00:11]} Rgd3 {[%emt 0:00:00]} 31. Re3 {
[%emt 0:00:07]} Rd2 {[%emt 0:00:03]} 32. b3 {[%emt 0:00:07]} Rd1 {[%emt 0:00:
34]} 33. Qc3 {[%emt 0:00:02]} R8d2 {[%emt 0:00:15]} 34. a4 {[%emt 0:00:20]} Bf1
{[%emt 0:00:05]} 35. Rg3 {[%emt 0:00:00]} Nd4 {[%emt 0:00:13]} 36. Qxc7 {
[%emt 0:00:11]} Nf3+ {[%emt 0:00:00]} 37. Kh3 {[%emt 0:00:00]} Ng1+ {[%emt 0:
00:02]} 38. Kh2 {[%emt 0:00:00]} Nf3+ {[%emt 0:00:00]} 39. Kh3 {[%emt 0:00:00]}
Ng1+ {[%emt 0:00:01]} 40. Kh2 {[%emt 0:00:00]} 1/2-1/2

[Event "RUS-ch Blitz 2021"]
[Site "Sochi"]
[Date "2021.10.11"]
[Round "5.12"]
[White "Kukhmazov, Arsen"]
[Black "Grachev, Boris"]
[Result "1-0"]
[ECO "D37"]
[WhiteElo "2472"]
[BlackElo "2615"]
[Annotator "ChessBase"]
[PlyCount "87"]
[EventDate "2021.10.11"]
[EventType "blitz"]
[EventCountry "RUS"]
[SourceTitle "playchess.com"]
[Source "ChessBase"]
[SourceQuality "1"]
[TimeControl "180+2"]

1. d4 {[%emt 0:00:00]} Nf6 {[%emt 0:00:06]} 2. c4 {[%emt 0:00:02]} e6 {[%emt 0:
00:00]} 3. Nf3 {[%emt 0:00:00]} a6 {[%emt 0:00:04]} 4. Nc3 {[%emt 0:00:02]} d5
{[%emt 0:00:00]} 5. cxd5 {[%emt 0:00:06]} exd5 {[%emt 0:00:00]} 6. Bg5 {
[%emt 0:00:00]} Be6 {[%emt 0:00:00]} 7. Bxf6 {[%emt 0:00:04]} Qxf6 {[%emt 0:00:
00]} 8. Qb3 {[%emt 0:00:02]} Ra7 {[%emt 0:00:03]} 9. g3 {[%emt 0:00:00]} Bd6 {
[%emt 0:00:03]} 10. Bg2 {[%emt 0:00:00]} Qd8 {[%emt 0:00:45]} 11. h4 {[%emt 0:
00:15]} h6 {[%emt 0:00:08]} 12. O-O {[%emt 0:00:09]} c6 {[%emt 0:00:02]} 13.
Qc2 {[%emt 0:00:30]} Nd7 {[%emt 0:00:17]} 14. Rad1 {[%emt 0:00:16]} O-O {
[%emt 0:00:02]} 15. e4 {[%emt 0:00:29]} dxe4 {[%emt 0:00:04]} 16. Nxe4 {
[%emt 0:00:00]} Nf6 {[%emt 0:00:09]} 17. Ne5 {[%emt 0:00:23]} Ra8 {[%emt 0:00:
06]} 18. Rfe1 {[%emt 0:00:09]} Nxe4 {[%emt 0:00:12]} 19. Bxe4 {[%emt 0:00:00]}
Qf6 {[%emt 0:00:08]} 20. f4 {[%emt 0:00:10]} Rad8 {[%emt 0:00:05]} 21. a3 {
[%emt 0:00:13]} Bb8 {[%emt 0:00:00]} 22. Kg2 {[%emt 0:00:03]} Ba7 {[%emt 0:00:
12]} 23. Qc3 {[%emt 0:00:29]} Bd5 {[%emt 0:00:06]} 24. Nf3 {[%emt 0:00:00]} Rd7
{[%emt 0:00:25]} 25. Bxd5 {[%emt 0:00:09]} Rxd5 {[%emt 0:00:04]} 26. Re5 {
[%emt 0:00:00]} Rfd8 {[%emt 0:00:04]} 27. b4 {[%emt 0:00:12]} Qd6 {[%emt 0:00:
08]} 28. Rd3 {[%emt 0:00:09]} f6 {[%emt 0:00:04]} 29. Re4 {[%emt 0:00:03]} h5 {
[%emt 0:00:12]} 30. Qe1 {[%emt 0:00:00]} Qf8 {[%emt 0:00:02]} 31. Re7 {[%emt 0:
00:02]} R5d7 {[%emt 0:00:10]} 32. Qe6+ {[%emt 0:00:04]} Kh7 {[%emt 0:00:20]}
33. Rxd7 {[%emt 0:00:03]} Rxd7 {[%emt 0:00:00]} 34. Qxd7 {[%emt 0:00:00]} Qg8 {
[%emt 0:00:05]} 35. Qf5+ {[%emt 0:00:00]} Kh6 {[%emt 0:00:03]} 36. Re3 {
[%emt 0:00:06]} Qa2+ {[%emt 0:00:00]} 37. Kh3 {[%emt 0:00:02]} Qf2 {[%emt 0:00:
00]} 38. Qe6 {[%emt 0:00:02]} Qf1+ {[%emt 0:00:04]} 39. Kh2 {[%emt 0:00:00]}
Qf2+ {[%emt 0:00:00]} 40. Kh1 {[%emt 0:00:04]} Qxg3 {[%emt 0:00:01]} 41. Ng5 {
[%emt 0:00:02]} Qxh4+ {[%emt 0:00:05]} 42. Rh3 {[%emt 0:00:00]} Qf2 {[%emt 0:
00:00]} 43. Nf7+ {[%emt 0:00:06]} Kg6 {[%emt 0:00:00]} 44. Ne5+ {[%emt 0:00:00]
} 1-0

[Event "RUS-ch Blitz 2021"]
[Site "Sochi"]
[Date "2021.10.11"]
[Round "5.13"]
[White "Iljiushenok, Ilia"]
[Black "Vlassow, Valentin"]
[Result "1-0"]
[ECO "B03"]
[WhiteElo "2554"]
[BlackElo "2238"]
[Annotator "ChessBase"]
[PlyCount "103"]
[EventDate "2021.10.11"]
[EventType "blitz"]
[EventCountry "RUS"]
[SourceTitle "playchess.com"]
[Source "ChessBase"]
[SourceQuality "1"]
[TimeControl "180+2"]

1. e4 {[%emt 0:00:00]} Nf6 {[%emt 0:00:00]} 2. e5 {[%emt 0:00:08]} Nd5 {
[%emt 0:00:03]} 3. d4 {[%emt 0:00:00]} d6 {[%emt 0:00:00]} 4. c4 {[%emt 0:00:
00]} Nb6 {[%emt 0:00:04]} 5. f4 {[%emt 0:00:01]} dxe5 {[%emt 0:00:00]} 6. fxe5
{[%emt 0:00:00]} c5 {[%emt 0:00:00]} 7. d5 {[%emt 0:00:03]} g6 {[%emt 0:00:02]}
8. Nc3 {[%emt 0:00:03]} Bg7 {[%emt 0:00:00]} 9. Bf4 {[%emt 0:00:06]} O-O {
[%emt 0:00:00]} 10. Qd2 {[%emt 0:00:02]} e6 {[%emt 0:00:00]} 11. O-O-O {
[%emt 0:00:10]} exd5 {[%emt 0:00:00]} 12. cxd5 {[%emt 0:00:02]} Bg4 {[%emt 0:
00:10]} 13. Nf3 {[%emt 0:00:13]} c4 {[%emt 0:00:22]} 14. Bh6 {[%emt 0:00:22]}
Bxf3 {[%emt 0:00:35]} 15. Bxg7 {[%emt 0:00:03]} Kxg7 {[%emt 0:00:16]} 16. gxf3
{[%emt 0:00:00]} N8d7 {[%emt 0:00:04]} 17. Qd4 {[%emt 0:00:12]} Kg8 {[%emt 0:
00:14]} 18. h4 {[%emt 0:00:00]} Qc7 {[%emt 0:00:06]} 19. f4 {[%emt 0:00:08]}
Qc5 {[%emt 0:00:07]} 20. h5 {[%emt 0:00:28]} Qxd4 {[%emt 0:00:00]} 21. Rxd4 {
[%emt 0:00:00]} Rac8 {[%emt 0:00:18]} 22. hxg6 {[%emt 0:00:08]} hxg6 {[%emt 0:
00:07]} 23. Bh3 {[%emt 0:00:00]} Kg7 {[%emt 0:00:07]} 24. e6 {[%emt 0:00:18]}
fxe6 {[%emt 0:00:03]} 25. dxe6 {[%emt 0:00:03]} Nc5 {[%emt 0:00:07]} 26. e7 {
[%emt 0:00:02]} Rh8 {[%emt 0:00:20]} 27. Re1 {[%emt 0:00:36]} Rce8 {[%emt 0:00:
10]} 28. Bf1 {[%emt 0:00:09]} Kf7 {[%emt 0:00:07]} 29. Ne4 {[%emt 0:00:11]}
Nxe4 {[%emt 0:00:07]} 30. Rdxe4 {[%emt 0:00:05]} Rh4 {[%emt 0:00:18]} 31. a4 {
[%emt 0:00:00]} a5 {[%emt 0:00:00]} 32. Re6 {[%emt 0:00:00]} Rxf4 {[%emt 0:00:
10]} 33. Rxb6 {[%emt 0:00:03]} Rxe7 {[%emt 0:00:00]} 34. Rxe7+ {[%emt 0:00:03]}
Kxe7 {[%emt 0:00:00]} 35. Be2 {[%emt 0:00:04]} g5 {[%emt 0:00:10]} 36. Rg6 {
[%emt 0:00:00]} Re4 {[%emt 0:00:00]} 37. Kd2 {[%emt 0:00:06]} c3+ {[%emt 0:00:
02]} 38. bxc3 {[%emt 0:00:07]} Rxa4 {[%emt 0:00:00]} 39. Rxg5 {[%emt 0:00:00]}
Kd6 {[%emt 0:00:02]} 40. Rb5 {[%emt 0:00:05]} Kc7 {[%emt 0:00:00]} 41. Bf3 {
[%emt 0:00:02]} b6 {[%emt 0:00:03]} 42. Kd3 {[%emt 0:00:00]} Rf4 {[%emt 0:00:
01]} 43. Be4 {[%emt 0:00:02]} Rf6 {[%emt 0:00:00]} 44. Rh5 {[%emt 0:00:08]} Rf7
{[%emt 0:00:01]} 45. Rh6 {[%emt 0:00:00]} Rd7+ {[%emt 0:00:04]} 46. Kc4 {
[%emt 0:00:00]} a4 {[%emt 0:00:10]} 47. Bc6 {[%emt 0:00:09]} Rg7 {[%emt 0:00:
02]} 48. Bxa4 {[%emt 0:00:00]} Kb7 {[%emt 0:00:02]} 49. Bc6+ {[%emt 0:00:05]}
Ka7 {[%emt 0:00:00]} 50. Be4 {[%emt 0:00:03]} Rc7+ {[%emt 0:00:02]} 51. Kb4 {
[%emt 0:00:00]} Re7 {[%emt 0:00:01]} 52. Rh7 {[%emt 0:00:03]} 1-0